bitfinex-derivatives/quotes_ETHF0:USTF0_20250331
["timestamp","ask_amount","ask_price","bid_price","bid_amount"]
[1743451579090,1.10228569,1828.4,1828.3,1.0941]
[1743451579582,0.00820569,1828.4,1828.3,4.3019]
[1743451579883,1.09396,1828.6,1828.5,1.09396]
[1743451580382,5.8775,1828.8,1828.3,5.94306]
[1743451580588,5.8775,1828.8,1828.5,3.2078]
[1743451580793,1.09392,1828.6,1828.5,1.09393]
[1743451581085,1.09392,1828.6,1828.5,4.30173]
[1743451581589,1.09392,1828.6,1828.5,4.30174]
[1743451583188,1.09392,1828.6,1828.5,1.09394]
[1743451583582,1.09403,1828.5,1828.4,1.09401]
[1743451583976,1.09408,1828.4,1828.3,1.09406]
[1743451584586,1.09408,1828.4,1828.3,4.30186]
[1743451585794,2.53694,1828.5,1828.4,1.09404]
[1743451587682,1.09409,1828.4,1828.3,1.09404]
[1743451588278,1.80789,1828.4,1828.3,1.09404]
[1743451588988,1.83727,1828.6,1828.5,1.09398]
[1743451591786,1.09398,1828.5,1828.4,2.5198]
[1743451591987,1.09398,1828.5,1828.4,1.4258]
[1743451592187,1.09398,1828.5,1828.4,2.51984]
[1743451592382,1.4123,1828.5,1828.4,2.51984]
[1743451592586,1.83727,1828.6,1828.5,1.09398]
[1743451592793,1.83727,1828.6,1828.5,2.51408]
[1743451593592,0.7433,1828.6,1828.5,2.51408]
[1743451593792,5.53783569,1828.8,1828.7,1.09386]
[1743451594493,5.53783569,1828.8,1828.7,2.52456]
[1743451594695,1.81583569,1828.8,1828.7,2.52456]
[1743451594994,3.27783569,1828.8,1828.7,2.52456]
[1743451595884,2.18400569,1828.8,1828.7,2.52456]
[1743451596190,3.27781569,1828.8,1828.7,2.52456]
[1743451598887,3.27781569,1828.8,1828.7,1.4307]
[1743451600286,3.27781569,1828.8,1828.7,2.52456]
[1743451600491,3.27781569,1828.8,1828.7,1.4307]
[1743451603297,1.09398,1828.5,1828.4,1.09399]
[1743451603497,1.09398,1828.5,1828.4,1.4983]
[1743451604097,2.50288,1828.5,1828.4,2.59234]
[1743451605202,2.50288,1828.5,1828.4,1.4983]
[1743451605403,1.0941,1828.3,1828.2,4.30193]
[1743451605901,1.09416,1828.2,1828.1,1.78519]
[1743451606201,7.56134,1828.4,1828.0,1.81304]
[1743451606202,1.09422,1828.1,1828.0,1.81304]
[1743451606698,1.09422,1828.1,1828.0,2.50678]
[1743451606897,1.09422,1828.1,1828.0,1.4125]
[1743451607097,1.09422,1828.1,1828.0,2.50678]
[1743451607294,3.43468,1828.3,1828.0,2.50678]
[1743451607498,3.43468,1828.3,1828.1,2.5067]
[1743451607499,1.09421,1828.2,1828.1,2.5067]
[1743451609100,1.09421,1828.2,1828.1,1.4125]
[1743451609301,1.09421,1828.2,1827.9,0.691]
[1743451609302,1.09434,1827.9,1827.8,1.84955569]
[1743451609495,1.09434,1827.9,1827.8,0.75520569]
[1743451609697,1.09434,1827.9,1827.8,0.00820569]
[1743451610599,2.52824,1827.9,1827.8,0.00820569]
[1743451613407,5.02824,1827.9,1827.8,0.00820569]
[1743451613912,1.09458,1827.5,1827.4,1.3588]
[1743451614108,4.81558,1827.5,1827.4,1.3588]
[1743451614704,6.31468,1827.5,1827.4,1.3588]
[1743451615010,1.09464,1827.4,1827.3,3.21600569]
[1743451615207,2.59374,1827.4,1827.3,1.36700569]
[1743451616102,1.09464,1827.4,1827.3,1.36700569]
[1743451616810,2.45134,1827.4,1827.3,1.36700569]
[1743451621009,2.45134,1827.4,1827.3,0.00820569]
[1743451625707,2.45134,1827.4,1827.3,0.00198665]
[1743451627014,4.95134,1827.4,1827.3,0.00198665]
[1743451628712,1.09482,1827.1,1827.0,1.4662]
[1743451628930,8.02462,1827.1,1827.0,1.4662]
[1743451629514,9.52512,1827.1,1827.0,1.4662]
[1743451630311,1.09488,1827.0,1826.9,0.00820569]
[1743451630517,2.59538,1827.0,1826.9,0.00820569]
[1743451632014,3.27928,1827.0,1826.9,0.00820569]
[1743451633712,3.2078,1827.1,1826.9,0.00820569]
[1743451634017,4.81688,1827.0,1826.9,1.83304569]
[1743451636121,1.09488,1827.0,1826.9,3.31674569]
[1743451637223,1.09482,1827.2,1827.1,1.0948]
[1743451637424,1.09473,1827.3,1827.2,1.09469]
[1743451637626,1.09468,1827.4,1827.3,1.09468]
[1743451638124,1.09463,1827.5,1827.4,1.09462]
[1743451638317,3.21600569,1827.6,1827.3,1.09465]
[1743451638318,1.09466,1827.4,1827.3,1.09465]
[1743451638517,1.09466,1827.4,1827.3,3.24835]
[1743451639319,1.09461,1827.5,1827.4,1.09458]
[1743451639622,1.09461,1827.5,1827.4,2.54638]
[1743451640024,1.09461,1827.5,1827.4,5.75418]
[1743451640218,1.10278569,1827.6,1827.5,1.09458]
[1743451640528,1.10278569,1827.6,1827.5,1.4843]
[1743451641325,1.10278569,1827.6,1827.5,2.57888]
[1743451642727,1.10278569,1827.6,1827.5,1.4843]
[1743451642917,1.10278569,1827.6,1827.5,2.57888]
[1743451646027,0.00820569,1827.6,1827.5,2.57888]
[1743451646225,3.2078,1828.4,1827.8,2.7359]
[1743451646427,7.35224,1828.4,1828.1,1.0942]
[1743451646621,7.35224,1828.4,1828.2,1.3955]
[1743451646622,1.0941,1828.3,1828.2,1.3955]
[1743451646824,4.81398,1828.5,1828.4,1.09404]
[1743451647020,4.81398,1828.5,1828.3,1.81495]
[1743451647225,1.09404,1828.4,1828.3,3.21045]
[1743451647526,4.814,1828.5,1828.4,1.09404]
[1743451647719,1.094,1828.5,1828.3,1.81495]
[1743451647923,1.094,1828.5,1828.4,1.09404]
[1743451648524,1.09398,1828.5,1828.3,2.26188864]
[1743451648725,1.09398,1828.5,1828.4,1.09404]
[1743451649432,4.82218569,1828.6,1828.5,1.09398]
[1743451649634,0.00820569,1828.6,1828.5,1.09398]
[1743451650725,2.73381,1829.3,1828.6,2.7348]
[1743451650930,1.09369,1829.0,1828.9,1.09369]
[1743451651125,1.09369,1829.0,1828.9,0.7467]
[1743451653437,1.09375,1828.9,1828.8,3.2078]
[1743451653628,1.09381,1828.8,1828.7,1.82846]
[1743451653934,1.09381,1828.8,1828.7,0.7346]
[1743451654732,1.09386,1828.7,1828.6,3.9442]
[1743451654935,2.46926,1828.7,1828.6,3.2078]
[1743451655935,1.09404,1828.4,1828.3,4.6708]
[1743451657337,1.09404,1828.4,1828.3,5.76489]
[1743451657636,1.09399,1828.5,1828.3,5.76486]
[1743451658338,1.09404,1828.4,1828.3,4.6708]
[1743451658737,1.09404,1828.4,1828.3,3.2078]
[1743451659239,1.09389,1828.7,1828.3,3.2078]
[1743451659435,1.09389,1828.7,1828.5,1.09396]
[1743451659642,1.09387,1828.7,1828.5,3.2078]
[1743451660032,1.09387,1828.7,1828.5,4.30175]
[1743451660233,0.6816,1828.9,1828.7,1.09386]
[1743451660537,0.6816,1828.9,1828.8,1.4391]
[1743451660734,1.77539,1828.9,1828.8,1.4391]
[1743451661041,0.00820569,1829.1,1828.9,1.09372]
[1743451661333,0.00820569,1829.1,1829.0,1.4711]
[1743451661334,1.10183569,1829.1,1829.0,1.4711]
[1743451661736,4.30963569,1829.1,1829.0,1.4711]
[1743451662732,1.10183569,1829.1,1829.0,1.4711]
[1743451663238,0.00820569,1829.1,1829.0,2.56479]
[1743451663431,1.10183569,1829.1,1829.0,1.4711]
[1743451663939,0.00820569,1829.1,1829.0,1.4711]
[1743451664140,1.10183569,1829.1,1829.0,1.4711]
[1743451665238,0.00820569,1829.1,1829.0,2.56479]
[1743451666139,0.00820569,1829.1,1829.0,5.77259]
[1743451666632,2.2128,1829.4,1829.3,1.09351]
[1743451666833,0.7278,1829.4,1829.3,1.09351]
[1743451667028,1.485,1829.6,1829.5,1.09339]
[1743451667241,1.09328,1829.7,1829.5,1.09333]
[1743451667539,1.09328,1829.7,1829.6,1.4406]
[1743451667742,3.716,1829.8,1829.6,2.5339]
[1743451668042,1.09327,1829.7,1829.6,1.4406]
[1743451668230,1.09327,1829.7,1829.5,1.09334]
[1743451668431,1.38240569,1829.8,1829.5,1.09337]
[1743451668634,1.09332,1829.7,1829.5,1.09337]
[1743451668839,4.11545569,1829.8,1829.4,3.21600569]
[1743451669033,1.09337,1829.6,1829.4,4.30940569]
[1743451669237,1.09339,1829.5,1829.4,4.30940569]
[1743451670038,1.09339,1829.5,1829.4,0.00820569]
[1743451671035,3.22759,1829.5,1829.4,0.00820569]
[1743451676446,2.73377,1829.3,1828.7,4.98452]
[1743451676646,1.09381,1828.8,1828.7,3.8907]
[1743451676851,1.09381,1828.8,1828.7,1.77676]
[1743451677344,4.79706,1829.0,1828.6,0.7474]
[1743451677345,1.09386,1828.7,1828.6,1.84131]
[1743451677545,1.09386,1828.7,1828.6,0.75560569]
[1743451678142,1.10205569,1828.8,1828.6,0.75560569]
[1743451678347,0.00820569,1828.8,1828.7,1.09386]
[1743451678547,1.10201569,1828.8,1828.6,1.84949569]
[1743451679050,1.09386,1828.7,1828.6,1.84949569]
[1743451679250,1.10205569,1828.8,1828.7,1.09386]
[1743451679549,1.10205569,1828.8,1828.7,1.77136]
[1743451679749,1.10205569,1828.8,1828.7,0.6775]
[1743451680148,1.10201569,1828.8,1828.7,4.97916]
[1743451680351,1.10201569,1828.8,1828.7,3.24716]
[1743451680752,1.10201569,1828.8,1828.7,2.1533]
[1743451681251,0.00820569,1828.8,1828.7,6.45496]
[1743451682346,0.00820569,1828.8,1828.7,7.18111457]
[1743451683353,1.10201569,1828.8,1828.7,7.18111457]
[1743451683654,1.10201569,1828.8,1828.7,5.3611]
[1743451683851,1.10201569,1828.8,1828.7,6.45496]
[1743451684852,0.00820569,1828.8,1828.7,6.45496]
[1743451685352,1.10201569,1828.8,1828.7,6.45496]
[1743451685550,0.00820569,1828.8,1828.7,6.45496]
[1743451685749,1.10201569,1828.8,1828.7,6.45496]
[1743451686148,1.10201569,1828.8,1828.7,5.3611]
[1743451686649,1.10201569,1828.8,1828.7,6.45496]
[1743451687653,0.00820569,1828.8,1828.7,6.45496]
[1743451687949,0.00820569,1828.8,1828.7,7.18170323]
[1743451688355,5.94147,1829.4,1828.8,2.73444]
[1743451688555,1.09363,1829.2,1829.1,1.09359]
[1743451688755,1.09363,1829.2,1829.1,2.58029]
[1743451689451,1.09363,1829.2,1829.1,1.4867]
[1743451691453,1.09363,1829.1,1829.0,3.2078]
[1743451691756,3.21903,1829.1,1829.0,3.2078]
[1743451692155,3.21903,1829.1,1829.0,5.68589]
[1743451692359,3.96493,1829.1,1829.0,5.68589]
[1743451692750,3.96493,1829.1,1829.0,4.5922]
[1743451693046,1.09375,1828.9,1828.8,4.30159]
[1743451693250,1.09375,1828.9,1828.8,4.5922]
[1743451693461,1.09375,1828.9,1828.8,5.68601]
[1743451693761,1.09375,1828.9,1828.8,4.5922]
[1743451693955,1.09375,1828.9,1828.8,1.3844]
[1743451694258,1.4918,1829.0,1828.8,1.3844]
[1743451694448,2.53777,1829.1,1829.0,1.09369]
[1743451695057,0.7459,1829.1,1829.0,1.09369]
[1743451695256,0.7459,1829.1,1829.0,2.51369]
[1743451695450,1.83953,1829.1,1829.0,2.51369]
[1743451695852,0.7459,1829.1,1829.0,2.51369]
[1743451696156,1.0936,1829.2,1829.1,1.09363]
[1743451696360,1.0936,1829.2,1829.1,3.19373]
[1743451696854,1.0936,1829.2,1829.1,2.1001]
[1743451697057,1.0936,1829.2,1829.1,1.42]
[1743451697358,1.09363,1829.1,1829.0,3.2078]
[1743451697560,3.30053,1829.1,1829.0,4.6278]
[1743451698261,1.09363,1829.1,1829.0,4.6278]
[1743451701266,1.09363,1829.1,1829.0,1.42]
[1743451705469,1.09363,1829.1,1829.0,2.51369]
[1743451705666,1.09363,1829.1,1829.0,1.42]
[1743451707266,1.0936,1829.2,1829.1,1.09363]
[1743451707572,1.09362,1829.2,1829.1,1.09361]
[1743451708167,1.09358,1829.2,1829.1,1.09358]
[1743451708368,2.54433569,1829.3,1829.2,1.09357]
[1743451708559,2.54433569,1829.3,1829.2,1.4062]
[1743451709861,0.00820569,1829.3,1829.2,5.70757]
[1743451710162,0.00820569,1829.3,1829.2,7.12126118]
[1743451711470,5.94084,1829.8,1829.2,7.12126118]
[1743451711471,3.2078,1830.0,1829.5,2.7334]
[1743451711659,1.09319,1829.9,1829.8,1.0932]
[1743451711862,2.73258,1830.1,1829.7,1.4189]
[1743451712062,2.73258,1830.1,1829.8,1.0932]
[1743451712063,4.21588,1830.1,1829.8,1.0932]
[1743451712365,2.57639,1830.0,1829.9,1.4189]
[1743451713466,1.09315,1829.9,1829.8,0.00820569]
[1743451713672,3.20445,1829.9,1829.8,0.00820569]
[1743451714369,3.20445,1829.9,1829.8,1.44780569]
[1743451714962,3.20445,1829.9,1829.8,0.00820569]
[1743451719267,3.20445,1829.9,1829.8,0.00198954]
[1743451719676,1.09333,1829.6,1829.5,1.3846]
[1743451720670,1.09333,1829.6,1829.5,2.47799]
[1743451721364,2.53671,1829.7,1829.6,1.09333]
[1743451721569,2.53671,1829.7,1829.6,1.3846]
[1743451721970,2.53667,1829.7,1829.6,2.47793]
[1743451722171,2.53667,1829.7,1829.6,1.3846]
[1743451722788,2.53667,1829.7,1829.6,2.47793]
[1743451723083,1.09327,1829.7,1829.6,1.3846]
[1743451723782,1.8434,1829.9,1829.6,1.3846]
[1743451723983,2.54374,1830.0,1829.8,1.09321]
[1743451724185,0.68620569,1830.1,1830.0,1.09309]
[1743451724383,0.00820569,1830.1,1830.0,1.09309]
[1743451724583,0.00820569,1830.1,1830.0,2.58529]
[1743451725588,0.00820569,1830.1,1830.0,5.79309]
[1743451727282,0.6968,1830.4,1830.0,5.79309]
[1743451727283,1.09285,1830.4,1830.3,1.09286]
[1743451727782,3.2078,1830.8,1830.2,3.2078]
[1743451727986,9.37176,1830.8,1830.3,5.55407]
[1743451728176,9.37175,1830.8,1830.6,1.09273]
[1743451728380,5.0713,1830.8,1830.7,1.3994]
[1743451728685,0.00820569,1830.9,1830.8,1.09261]
[1743451728888,0.00820569,1830.9,1830.8,3.92081]
[1743451729282,0.00820569,1830.9,1830.8,4.35352015]
[1743451729587,0.00820569,1830.9,1830.8,3.92081]
[1743451730575,0.00820569,1830.9,1830.8,6.42081]
[1743451730781,1.09231,1831.3,1831.1,1.09243]
[1743451730978,1.09231,1831.3,1831.2,1.3994]
[1743451731485,4.3001,1831.4,1831.2,1.3994]
[1743451731787,1.0923,1831.4,1831.2,1.3994]
[1743451732174,3.71,1831.5,1831.2,1.3994]
[1743451732175,1.09231,1831.3,1831.2,1.3994]
[1743451736082,1.09243,1831.1,1831.0,3.2078]
[1743451736280,0.6779,1831.2,1830.8,5.07207213]
[1743451736481,0.6779,1831.2,1830.8,6.16466213]
[1743451736482,1.09253,1831.0,1830.8,6.16466213]
[1743451736683,1.09253,1831.0,1830.8,6.16467213]
[1743451736887,1.09247,1831.1,1830.8,6.16467213]
[1743451737287,3.709,1831.2,1830.9,2.57573]
[1743451737489,1.09247,1831.1,1831.0,1.4849]
[1743451738693,1.0923,1831.4,1831.1,1.09243]
[1743451738882,1.0923,1831.4,1831.2,2.57723]
[1743451739083,1.0923,1831.4,1831.3,1.4849]
[1743451740891,1.09243,1831.1,1831.0,3.2078]
[1743451741291,1.09241,1831.2,1831.0,4.30029]
[1743451742294,1.09241,1831.2,1831.1,1.3891]
[1743451742693,1.4689,1831.3,1831.1,1.3891]
[1743451742890,1.09237,1831.2,1831.1,1.3891]
[1743451743696,1.09237,1831.2,1831.1,2.48153]
[1743451743997,1.09237,1831.2,1831.1,1.3891]
[1743451744199,1.4689,1831.3,1831.1,2.48151]
[1743451744388,1.09237,1831.2,1831.1,2.48151]
[1743451744582,1.09237,1831.2,1831.1,1.3891]
[1743451746997,1.09237,1831.2,1831.1,2.48153]
[1743451747291,1.09237,1831.2,1831.1,1.3891]
[1743451747497,9.64581,1831.2,1830.8,1.09259]
[1743451747690,1.09249,1831.0,1830.9,1.4166]
[1743451748287,1.09258,1830.9,1830.8,1.0926]
[1743451748492,1.09258,1830.9,1830.8,1.4166]
[1743451749796,1.09253,1831.0,1830.8,1.4166]
[1743451749999,1.09253,1831.0,1830.9,1.09255]
[1743451750201,6.9148,1831.2,1831.0,1.09248]
[1743451750502,6.9148,1831.2,1831.1,1.3944]
[1743451750503,6.27057,1831.2,1831.1,1.3944]
[1743451750895,6.27057,1831.2,1831.1,2.48683]
[1743451751296,6.27057,1831.2,1831.1,1.3944]
[1743451751500,6.27057,1831.2,1831.1,2.48683]
[1743451751900,6.27057,1831.2,1831.1,1.3944]
[1743451752600,1.09237,1831.2,1831.1,2.48683]
[1743451753002,1.09237,1831.2,1831.1,1.3944]
[1743451754507,1.09237,1831.2,1831.1,2.48683]
[1743451754805,1.09237,1831.2,1831.1,1.3944]
[1743451755902,2.46907,1831.2,1831.1,2.48683]
[1743451757310,1.84001,1831.3,1831.2,1.09237]
[1743451757609,1.84001,1831.3,1831.2,1.3683]
[1743451757811,1.84001,1831.3,1831.2,2.46067]
[1743451758011,1.84001,1831.3,1831.2,1.3683]
[1743451758310,3.2078,1831.6,1831.2,1.3683]
[1743451758311,6.9138,1831.6,1831.5,1.09219]
[1743451758504,1.0922,1831.5,1831.4,1.0922]
[1743451758803,1.0922,1831.5,1831.4,2.18609352]
[1743451759307,2.4642,1831.5,1831.4,1.45770569]
[1743451765313,1.0922,1831.5,1831.4,2.54995569]
[1743451765514,1.0922,1831.5,1831.4,1.45770569]
[1743451765714,3.2078,1832.4,1831.4,3.95770569]
[1743451765903,1.09158,1832.6,1832.2,3.2078]
[1743451766097,1.09158,1832.6,1831.9,2.72976]
[1743451766098,1.0916,1832.5,1832.4,3.2078]
[1743451766303,2.5164,1832.5,1832.4,1.4755]
[1743451766801,2.8513,1832.5,1832.2,3.21600569]
[1743451767006,2.5165,1832.4,1832.3,1.4755]
[1743451767305,1.4248,1832.4,1832.3,1.4755]
[1743451767510,1.4248,1832.4,1832.3,2.56722]
[1743451767904,2.51814,1832.5,1832.3,1.4755]
[1743451768104,3.96284,1832.5,1832.4,4.6818]
[1743451769809,2.51814,1832.5,1832.4,4.6818]
[1743451775706,2.51814,1832.5,1832.4,1.474]
[1743451776322,3.95054,1832.5,1832.4,1.474]
[1743451776614,1.09147,1832.8,1832.4,4.6818]
[1743451776828,1.09084,1833.8,1832.7,5.4572]
[1743451777115,25.10580166,1834.3,1833.6,5.93514]
[1743451777116,0.7218,1834.2,1833.6,5.93514]
[1743451777317,0.7218,1834.2,1834.0,3.2078]
[1743451777918,25.10580166,1834.3,1834.0,3.2078]
[1743451778112,25.10580166,1834.3,1834.2,4.29838]
[1743451778312,25.10580166,1834.3,1834.2,3.2078]
[1743451778914,26.19633166,1834.3,1834.2,3.2078]
[1743451779120,26.47760166,1834.3,1834.2,4.29838]
[1743451779311,25.10580166,1834.3,1834.2,4.29838]
[1743451780013,25.10580166,1834.3,1834.2,3.2078]
[1743451780216,25.10580166,1834.3,1834.2,4.29838]
[1743451780611,25.10580166,1834.3,1834.2,4.6581]
[1743451780816,3.34503688,1834.3,1834.2,5.74868]
[1743451781011,4.5078,1834.7,1834.5,1.09037]
[1743451781224,2.72478,1835.4,1834.6,4.6581]
[1743451781522,1.4024,1835.3,1834.9,1.09014]
[1743451781712,2.49233,1835.3,1835.2,3.2078]
[1743451782118,4.99233,1835.3,1835.2,3.2078]
[1743451782521,1.08999,1835.2,1835.1,0.00818219]
[1743451782722,1.08999,1835.2,1834.8,3.2078]
[1743451782723,2.72536,1835.0,1834.8,3.2078]
[1743451782918,6.31157,1834.9,1834.8,3.2078]
[1743451783112,0.7001,1835.1,1834.8,3.2078]
[1743451783317,1.79015,1835.1,1835.0,3.2078]
[1743451783617,4.5171,1835.1,1835.0,3.2078]
[1743451784023,4.92313385,1835.2,1835.0,3.2078]
[1743451784221,4.92313385,1835.2,1835.1,1.4699]
[1743451786224,1.09005,1835.1,1835.0,3.2078]
[1743451786426,2.58095,1835.1,1835.0,3.2078]
[1743451789922,1.09011,1835.0,1834.9,0.00818219]
[1743451790127,2.45261,1835.0,1834.9,0.00818219]
[1743451791320,2.45261,1835.0,1834.9,1.36168219]
[1743451793925,2.45261,1835.0,1834.9,0.00818219]
[1743451795528,2.45261,1835.0,1834.9,1.39678219]
[1743451796329,1.09011,1835.0,1834.9,1.39678219]
[1743451796531,0.00810385,1835.2,1835.0,1.09011]
[1743451796726,1.09810385,1835.2,1835.1,4.5964]
[1743451796926,4.89210385,1835.2,1835.1,4.5964]
[1743451798235,3.80210385,1835.2,1835.1,4.5964]
[1743451798435,4.89209385,1835.2,1835.1,4.5964]
[1743451798638,4.88809385,1835.2,1835.1,4.5964]
[1743451799633,1.09809385,1835.2,1835.1,4.5964]
[1743451802334,2.54739385,1835.2,1835.1,4.5964]
[1743451806144,2.54739385,1835.2,1835.1,3.89179042]
[1743451806346,1.09011,1835.0,1834.9,0.00818219]
[1743451806546,4.87211,1835.0,1834.9,0.00818219]
[1743451806846,4.87211,1835.0,1834.9,1.10708372]
[1743451807239,4.87211,1835.0,1834.9,2.13843144]
[1743451807640,1.09011,1835.0,1834.9,2.13843144]
[1743451807842,3.85e-06,1835.2,1835.1,1.09005]
[1743451808143,3.794,1835.6,1835.1,5.15451045]
[1743451808349,3.794,1835.5,1835.4,3.2078]
[1743451808546,4.88381,1835.5,1835.4,5.15451045]
[1743451808740,4.88381,1835.5,1835.4,5.15483699]
[1743451809341,4.88381,1835.5,1835.4,3.95666038]
[1743451810643,4.88381,1835.5,1835.4,3.94722089]
[1743451811344,1.08967,1835.8,1835.5,1.08978]
[1743451811539,4.91663,1835.8,1835.7,3.2078]
[1743451811741,5.2883,1835.8,1835.7,3.94725349]
[1743451812039,6.37793,1835.8,1835.7,3.94725349]
[1743451812241,6.37793,1835.8,1835.7,0.73945349]
[1743451812440,6.37793,1835.8,1835.7,3.94725349]
[1743451813036,1.08975,1835.6,1835.5,3.2078]
[1743451813241,1.08975,1835.6,1835.5,3.9469462]
[1743451813644,3.822,1835.8,1835.5,3.9469462]
[1743451813840,4.91167,1835.8,1835.6,1.8288862]
[1743451814145,4.91167,1835.8,1835.7,3.2078]
[1743451814347,4.91167,1835.8,1835.7,3.94664654]
[1743451814743,4.91167,1835.8,1835.7,3.2078]
[1743451815238,4.91167,1835.8,1835.7,2.0828]
[1743451815548,1.08987,1835.4,1835.3,3.2078]
[1743451815849,4.91187,1835.4,1835.3,3.94653206]
[1743451816545,4.91187,1835.4,1835.3,3.94648982]
[1743451818154,4.90287,1835.4,1835.3,3.94648982]
[1743451818355,4.90287,1835.4,1835.3,4.62849892]
[1743451818948,4.90287,1835.4,1835.3,0.6820091]
[1743451819343,6.36967,1835.4,1835.3,0.6820091]
[1743451819948,8.86967,1835.4,1835.3,0.6820091]
[1743451820346,8.86967,1835.4,1835.3,9.1e-06]
[1743451823354,1.09011,1835.0,1834.9,0.00818219]
[1743451823554,4.89411,1835.0,1834.9,0.00818219]
[1743451825047,5.59691,1835.0,1834.9,0.00818219]
[1743451825448,8.80471,1835.0,1834.9,2.19e-06]
[1743451826855,11.30471,1835.0,1834.9,2.19e-06]
[1743451828255,8.80471,1835.0,1834.9,2.19e-06]
[1743451828456,11.30471,1835.0,1834.9,2.19e-06]
[1743451830958,8.80471,1835.0,1834.9,2.19e-06]
[1743451835457,1.09029,1834.7,1834.6,1.4349]
[1743451835657,4.86029,1834.7,1834.6,1.4349]
[1743451839269,1.09035,1834.6,1834.5,0.00818219]
[1743451839466,5.78605,1834.6,1834.5,0.00818219]
[1743451839861,5.78605,1834.6,1834.5,2.19e-06]
[1743451840966,6.47875,1834.6,1834.5,2.19e-06]
[1743451842062,1.09035,1834.6,1834.5,2.19e-06]
[1743451842268,4.84135,1834.6,1834.5,2.19e-06]
[1743451842567,4.84135,1834.6,1834.5,1.44920219]
[1743451845971,8.04915,1834.6,1834.5,1.44920219]
[1743451846167,8.04915,1834.6,1834.5,0.27253219]
[1743451846363,1.09041,1834.5,1834.4,0.7072]
[1743451846570,2.55331,1834.5,1834.4,0.7072]
[1743451847570,1.09075,1834.0,1833.8,3.2078]
[1743451847772,1.09075,1834.0,1833.9,0.69088354]
[1743451847967,4.83175,1834.0,1833.9,0.69088354]
[1743451848475,4.83175,1834.0,1833.9,1.36863031]
[1743451849374,4.83175,1834.0,1833.9,0.69088354]
[1743451849575,4.83175,1834.0,1833.9,2.17878354]
[1743451850371,4.83175,1834.0,1833.9,2.85739182]
[1743451851267,4.83175,1834.0,1833.9,2.17878354]
[1743451855469,1.09075,1834.0,1833.9,2.17878354]
[1743451855670,1.0907,1834.0,1833.9,2.17878354]
[1743451856268,1.0907,1834.0,1833.9,2.85652814]
[1743451856680,1.0907,1834.0,1833.9,2.17878354]
[1743451856980,4.8187,1834.0,1833.9,2.17878354]
[1743451857782,1.09885219,1834.1,1833.9,2.17878354]
[1743451857967,1.09064,1834.1,1834.0,4.6797]
[1743451858775,1.09064,1834.1,1834.0,5.3837]
[1743451859372,1.09064,1834.1,1834.0,4.6797]
[1743451859577,3.72754792,1834.2,1834.0,4.6797]
[1743451859779,4.81812792,1834.2,1834.1,1.4934]
[1743451862778,6.26632792,1834.2,1834.1,1.4934]
[1743451863375,1.09064,1834.1,1834.0,3.2078]
[1743451863676,3.27564,1834.1,1834.0,3.2078]
[1743451863876,1.0907,1834.0,1833.9,1.3894]
[1743451864074,1.09076,1833.9,1833.8,0.00818219]
[1743451864278,4.81376,1833.9,1833.8,0.00818219]
[1743451865684,3.723,1833.9,1833.8,0.00818219]
[1743451866086,3.723,1833.9,1833.8,0.73828219]
[1743451866791,3.723,1833.9,1833.8,1.41629281]
[1743451867179,3.723,1833.9,1833.8,2.86669281]
[1743451872698,4.81376,1833.9,1833.8,2.86669281]
[1743451873597,4.79676,1833.9,1833.8,2.86669281]
[1743451875597,3.706,1833.9,1833.8,2.86669281]
[1743451878400,3.706,1833.9,1833.8,3.60807464]
[1743451878998,3.706,1833.9,1833.8,3.60807837]
[1743451880395,3.706,1833.9,1833.8,3.60806769]
[1743451881498,3.706,1833.9,1833.8,2.86669281]
[1743451881991,3.706,1833.9,1833.8,3.60807399]
[1743451882304,3.706,1833.9,1833.8,3.60806766]
[1743451883204,3.706,1833.9,1833.8,3.60808838]
[1743451883600,4.79676,1833.9,1833.8,3.60808838]
[1743451884103,4.79676,1833.9,1833.8,2.87801684]
[1743451884504,4.79676,1833.9,1833.8,2.13659281]
[1743451885903,4.79676,1833.9,1833.8,0.68619281]
[1743451886805,4.79676,1833.9,1833.8,2.08889281]
[1743451888003,4.79676,1833.9,1833.8,2.83040635]
[1743451888304,4.79676,1833.9,1833.8,2.83042887]
[1743451888707,4.79676,1833.9,1833.8,2.08889281]
[1743451890294,4.79676,1833.9,1833.8,2.83045122]
[1743451890499,4.79676,1833.9,1833.8,2.08889281]
[1743451890901,4.79676,1833.9,1833.8,2.83046375]
[1743451891500,4.79676,1833.9,1833.8,2.83047157]
[1743451892201,4.79676,1833.9,1833.8,2.08889281]
[1743451892403,4.79676,1833.9,1833.8,2.83047575]
[1743451893101,4.79676,1833.9,1833.8,2.08889281]
[1743451894310,4.79676,1833.9,1833.8,2.83066735]
[1743451894512,4.79676,1833.9,1833.8,2.83066491]
[1743451896609,4.79676,1833.9,1833.8,1.42796491]
[1743451896809,4.79676,1833.9,1833.8,0.68619281]
[1743451897005,1.09082,1833.8,1833.7,3.2078]
[1743451897209,3.24392,1833.8,1833.7,3.2078]
[1743451903320,3.24392,1833.8,1833.7,4.5636]
[1743451907814,3.24392,1833.8,1833.7,3.2078]
[1743451908510,1.09088,1833.7,1833.6,0.00818219]
[1743451908711,3.24538,1833.7,1833.6,1.37168219]
[1743451908907,3.24538,1833.7,1833.6,0.00818219]
[1743451909114,1.09106,1833.4,1833.3,3.2078]
[1743451909315,4.79506,1833.4,1833.3,3.2078]
[1743451909513,4.79506,1833.4,1833.3,3.88170756]
[1743451909720,4.79506,1833.4,1833.3,0.67390756]
[1743451910019,5.48436,1833.4,1833.3,0.67390756]
[1743451910223,1.09118,1833.2,1833.1,4.5713]
[1743451910921,1.09118,1833.2,1833.1,5.2446772]
[1743451912124,1.09118,1833.2,1833.1,3.8811772]
[1743451912323,1.83928,1833.2,1833.1,3.2078]
[1743451912824,1.83928,1833.2,1833.0,1.44488219]